[Event "Titled Tuesday Blitz May 03 Early 2022"]
[White "Yuan, Qingyu"]
[Black "Devaev, Alexander"]
[WhiteFideId "8609772"]
[BlackFideId "4169395"]
[WhiteElo "2359"]
[BlackElo "2185"]
[Result "1-0"]
[Round "04"]
[TimeControl "180+1"]
[Date "2022.05.03"]
[WhiteClock "0:00:26"]
[BlackClock "0:00:01"]

1. e4 {[%clk 0:03:00]}  c6 {[%clk 0:02:59]} 2. Nf3 {[%clk 0:03:01]}  d5 {[%clk 0:03:00]} 3. Nc3 {[%clk 0:03:01]}  dxe4 {[%clk 0:03:00]} 4. Nxe4 {[%clk 0:03:02]}  Nf6 {[%clk 0:03:01]} 5. Qe2 {[%clk 0:03:03]}  Bf5 {[%clk 0:02:57]} 6. Nxf6+ {[%clk 0:03:00]}  gxf6 {[%clk 0:02:57]} 7. d3 {[%clk 0:03:00]}  Nd7 {[%clk 0:02:54]} 8. Bd2 {[%clk 0:02:50]}  e6 {[%clk 0:02:53]} 9. Nh4 {[%clk 0:02:42]}  Bg6 {[%clk 0:02:51]} 10. f4 {[%clk 0:02:42]}  f5 {[%clk 0:02:40]} 11. g3 {[%clk 0:02:40]}  Bg7 {[%clk 0:02:36]} 12. Bg2 {[%clk 0:02:31]}  Nb6 {[%clk 0:02:21]} 13. c3 {[%clk 0:02:22]}  Bf6 {[%clk 0:02:20]} 14. Nf3 {[%clk 0:02:12]}  Bh5 {[%clk 0:02:20]} 15. O-O {[%clk 0:02:05]}  O-O {[%clk 0:02:17]} 16. Be3 {[%clk 0:01:54]}  Qd7 {[%clk 0:02:08]} 17. Rad1 {[%clk 0:01:50]}  Bxf3 {[%clk 0:02:08]} 18. Bxf3 {[%clk 0:01:48]}  Kh8 {[%clk 0:02:06]} 19. d4 {[%clk 0:01:40]}  Rad8 {[%clk 0:01:55]} 20. Kh1 {[%clk 0:01:35]}  Rg8 {[%clk 0:01:46]} 21. Rd2 {[%clk 0:01:35]}  Nd5 {[%clk 0:01:28]} 22. Bf2 {[%clk 0:01:35]}  b5 {[%clk 0:01:29]} 23. Rc1 {[%clk 0:01:34]}  a6 {[%clk 0:01:29]} 24. b3 {[%clk 0:01:31]}  Rc8 {[%clk 0:01:13]} 25. c4 {[%clk 0:01:30]}  Ne7 {[%clk 0:01:11]} 26. Be3 {[%clk 0:01:23]}  Rgd8 {[%clk 0:01:12]} 27. Qg2 {[%clk 0:01:18]}  Ng6 {[%clk 0:00:50]} 28. Rcd1 {[%clk 0:01:15]}  Ne7 {[%clk 0:00:26]} 29. Qh3 {[%clk 0:01:03]}  Rg8 {[%clk 0:00:22]} 30. Bh5 {[%clk 0:00:51]}  Ng6 {[%clk 0:00:17]} 31. Qf1 {[%clk 0:00:44]}  Kg7 {[%clk 0:00:16]} 32. Qf2 {[%clk 0:00:42]}  Rgd8 {[%clk 0:00:16]} 33. Bf3 {[%clk 0:00:41]}  Qe7 {[%clk 0:00:15]} 34. Qg2 {[%clk 0:00:41]}  Qd7 {[%clk 0:00:13]} 35. h3 {[%clk 0:00:35]}  Rg8 {[%clk 0:00:11]} 36. Kh2 {[%clk 0:00:35]}  Kh8 {[%clk 0:00:11]} 37. Qf2 {[%clk 0:00:35]}  Rgd8 {[%clk 0:00:08]} 38. d5 {[%clk 0:00:35]}  cxd5 {[%clk 0:00:08]} 39. cxd5 {[%clk 0:00:35]}  e5 {[%clk 0:00:08]} 40. d6 {[%clk 0:00:31]}  e4 {[%clk 0:00:07]} 41. Be2 {[%clk 0:00:30]}  Kg7 {[%clk 0:00:07]} 42. g4 {[%clk 0:00:29]}  Bc3 {[%clk 0:00:05]} 43. Rd5 {[%clk 0:00:27]}  b4 {[%clk 0:00:01]} 44. gxf5 {[%clk 0:00:27]}  Nf8 {[%clk 0:00:02]} 45. f6+ {[%clk 0:00:26]}  Bxf6 {[%clk 0:00:01]} 46. Bg4 {[%clk 0:00:26]} 1-0


[Site "https://www.chess.com"]

[Event "Titled Tuesday Blitz May 03 Early 2022"]
[White "Yurovskykh, Oleksandr"]
[Black "Tristan, Leonardo"]
[WhiteFideId "14134020"]
[BlackFideId "113816"]
[WhiteElo "2292"]
[BlackElo "2404"]
[Result "1-0"]
[Round "04"]
[TimeControl "180+1"]
[Date "2022.05.03"]
[WhiteClock "0:00:16"]
[BlackClock "0:00:03"]

1. d4 {[%clk 0:03:00]}  d5 {[%clk 0:03:00]} 2. Bf4 {[%clk 0:02:56]}  Nf6 {[%clk 0:03:00]} 3. e3 {[%clk 0:02:56]}  e6 {[%clk 0:03:00]} 4. Nd2 {[%clk 0:02:56]}  Bd6 {[%clk 0:03:00]} 5. Bg3 {[%clk 0:02:56]}  O-O {[%clk 0:03:00]} 6. Ngf3 {[%clk 0:02:56]}  c5 {[%clk 0:03:01]} 7. c3 {[%clk 0:02:57]}  Qc7 {[%clk 0:03:01]} 8. dxc5 {[%clk 0:02:57]}  Qxc5 {[%clk 0:03:01]} 9. Bd3 {[%clk 0:02:58]}  Bxg3 {[%clk 0:02:57]} 10. hxg3 {[%clk 0:02:58]}  h6 {[%clk 0:02:58]} 11. Qe2 {[%clk 0:02:57]}  Nc6 {[%clk 0:02:56]} 12. e4 {[%clk 0:02:56]}  e5 {[%clk 0:02:45]} 13. O-O {[%clk 0:02:45]}  dxe4 {[%clk 0:02:39]} 14. Nxe4 {[%clk 0:02:45]}  Nxe4 {[%clk 0:02:39]} 15. Qxe4 {[%clk 0:02:45]}  f5 {[%clk 0:02:39]} 16. Qc4+ {[%clk 0:02:45]}  Qxc4 {[%clk 0:02:40]} 17. Bxc4+ {[%clk 0:02:46]}  Kh7 {[%clk 0:02:38]} 18. Rad1 {[%clk 0:02:46]}  e4 {[%clk 0:02:38]} 19. Nd4 {[%clk 0:02:45]}  Ne5 {[%clk 0:02:36]} 20. Be2 {[%clk 0:02:40]}  Bd7 {[%clk 0:02:36]} 21. Rd2 {[%clk 0:02:39]}  Rac8 {[%clk 0:02:22]} 22. Rfd1 {[%clk 0:02:38]}  Ba4 {[%clk 0:02:22]} 23. b3 {[%clk 0:02:34]}  Bd7 {[%clk 0:02:22]} 24. c4 {[%clk 0:02:33]}  b6 {[%clk 0:02:22]} 25. Nc2 {[%clk 0:02:33]}  Be6 {[%clk 0:02:20]} 26. Ne3 {[%clk 0:02:33]}  Rf6 {[%clk 0:02:06]} 27. Rd6 {[%clk 0:02:31]}  Rcf8 {[%clk 0:01:57]} 28. Nd5 {[%clk 0:02:24]}  Bxd5 {[%clk 0:01:57]} 29. Rxf6 {[%clk 0:02:24]}  Rxf6 {[%clk 0:01:57]} 30. Rxd5 {[%clk 0:02:25]}  Re6 {[%clk 0:01:51]} 31. f4 {[%clk 0:02:11]}  exf3 {[%clk 0:01:52]} 32. gxf3 {[%clk 0:02:12]}  Kg6 {[%clk 0:01:52]} 33. Kf2 {[%clk 0:02:12]}  Kf6 {[%clk 0:01:52]} 34. c5 {[%clk 0:02:03]}  Rc6 {[%clk 0:01:40]} 35. cxb6 {[%clk 0:01:56]}  axb6 {[%clk 0:01:40]} 36. f4 {[%clk 0:01:49]}  Ng4+ {[%clk 0:01:36]} 37. Bxg4 {[%clk 0:01:24]}  fxg4 {[%clk 0:01:36]} 38. a4 {[%clk 0:01:22]}  Rc2+ {[%clk 0:01:34]} 39. Kf1 {[%clk 0:01:16]}  Rc3 {[%clk 0:01:34]} 40. Rb5 {[%clk 0:01:16]}  Rxg3 {[%clk 0:01:32]} 41. Rxb6+ {[%clk 0:01:17]}  Kf5 {[%clk 0:01:32]} 42. a5 {[%clk 0:01:17]}  Kxf4 {[%clk 0:01:07]} 43. a6 {[%clk 0:01:17]}  Rf3+ {[%clk 0:01:05]} 44. Kg2 {[%clk 0:01:11]}  Rg3+ {[%clk 0:01:05]} 45. Kf2 {[%clk 0:01:08]}  Rf3+ {[%clk 0:01:05]} 46. Ke2 {[%clk 0:01:07]}  Re3+ {[%clk 0:01:05]} 47. Kd2 {[%clk 0:01:05]}  Re8 {[%clk 0:00:22]} 48. a7 {[%clk 0:01:04]}  Ra8 {[%clk 0:00:22]} 49. Rb7 {[%clk 0:01:00]}  g5 {[%clk 0:00:18]} 50. b4 {[%clk 0:00:52]}  g3 {[%clk 0:00:18]} 51. Ke2 {[%clk 0:00:51]}  h5 {[%clk 0:00:12]} 52. b5 {[%clk 0:00:50]}  h4 {[%clk 0:00:12]} 53. b6 {[%clk 0:00:50]}  h3 {[%clk 0:00:13]} 54. Rh7 {[%clk 0:00:30]}  g2 {[%clk 0:00:07]} 55. Kf2 {[%clk 0:00:23]}  Rf8 {[%clk 0:00:05]} 56. Rxh3 {[%clk 0:00:18]}  g4 {[%clk 0:00:03]} 57. Rb3 {[%clk 0:00:16]} 1-0


[Site "https://www.chess.com"]

[Event "Titled Tuesday Blitz May 03 Early 2022"]
[White "Zanette, Edgard Vinicius"]
[Black "Saldano Dayer, Horacio"]
[WhiteFideId "2109263"]
[BlackFideId "103411"]
[WhiteElo "2182"]
[BlackElo "2419"]
[Result "0-1"]
[Round "04"]
[TimeControl "180+1"]
[Date "2022.05.03"]
[WhiteClock "0:00:14"]
[BlackClock "0:00:08"]

1. e4 {[%clk 0:03:00]}  e6 {[%clk 0:02:59]} 2. d4 {[%clk 0:03:00]}  d5 {[%clk 0:02:59]} 3. Nc3 {[%clk 0:03:00]}  Bb4 {[%clk 0:02:58]} 4. e5 {[%clk 0:02:50]}  c5 {[%clk 0:02:58]} 5. Bd2 {[%clk 0:02:43]}  Ne7 {[%clk 0:02:56]} 6. Nb5 {[%clk 0:02:39]}  Bxd2+ {[%clk 0:02:54]} 7. Qxd2 {[%clk 0:02:40]}  O-O {[%clk 0:02:54]} 8. f4 {[%clk 0:02:40]}  Nbc6 {[%clk 0:02:50]} 9. dxc5 {[%clk 0:02:37]}  f6 {[%clk 0:02:48]} 10. Nf3 {[%clk 0:02:34]}  fxe5 {[%clk 0:02:46]} 11. fxe5 {[%clk 0:02:34]}  Ng6 {[%clk 0:02:30]} 12. O-O-O {[%clk 0:02:29]}  Ngxe5 {[%clk 0:02:28]} 13. Nxe5 {[%clk 0:02:27]}  Nxe5 {[%clk 0:02:29]} 14. Be2 {[%clk 0:02:09]}  Bd7 {[%clk 0:02:28]} 15. Qe3 {[%clk 0:01:53]}  Ng6 {[%clk 0:01:32]} 16. Nd6 {[%clk 0:01:46]}  Qa5 {[%clk 0:01:23]} 17. a3 {[%clk 0:01:40]}  Qc7 {[%clk 0:01:06]} 18. Nb5 {[%clk 0:00:55]}  Qf4 {[%clk 0:00:58]} 19. Qd2 {[%clk 0:00:30]}  Bxb5 {[%clk 0:00:53]} 20. Bxb5 {[%clk 0:00:29]}  Rac8 {[%clk 0:00:52]} 21. b4 {[%clk 0:00:26]}  Qe5 {[%clk 0:00:33]} 22. Qd4 {[%clk 0:00:26]}  Rc7 {[%clk 0:00:22]} 23. Qxe5 {[%clk 0:00:24]}  Nxe5 {[%clk 0:00:22]} 24. Rhe1 {[%clk 0:00:25]}  Rf5 {[%clk 0:00:21]} 25. Rd2 {[%clk 0:00:22]}  a6 {[%clk 0:00:16]} 26. Rde2 {[%clk 0:00:18]}  axb5 {[%clk 0:00:16]} 27. Rxe5 {[%clk 0:00:18]}  Rxe5 {[%clk 0:00:16]} 28. Rxe5 {[%clk 0:00:18]}  Kf7 {[%clk 0:00:17]} 29. Kd2 {[%clk 0:00:15]}  Kf6 {[%clk 0:00:17]} 30. Re3 {[%clk 0:00:14]}  e5 {[%clk 0:00:17]} 31. Rh3 {[%clk 0:00:14]}  h6 {[%clk 0:00:17]} 32. a4 {[%clk 0:00:14]}  bxa4 {[%clk 0:00:16]} 33. Ra3 {[%clk 0:00:14]}  b5 {[%clk 0:00:15]} 34. cxb6 {[%clk 0:00:14]}  Rb7 {[%clk 0:00:16]} 35. Rxa4 {[%clk 0:00:13]}  Rxb6 {[%clk 0:00:16]} 36. Kc3 {[%clk 0:00:12]}  d4+ {[%clk 0:00:16]} 37. Kc4 {[%clk 0:00:12]}  Rc6+ {[%clk 0:00:16]} 38. Kd5 {[%clk 0:00:12]}  Rxc2 {[%clk 0:00:16]} 39. Ra3 {[%clk 0:00:10]}  Rb2 {[%clk 0:00:13]} 40. Rf3+ {[%clk 0:00:11]}  Ke7 {[%clk 0:00:11]} 41. Kxe5 {[%clk 0:00:11]}  Rxb4 {[%clk 0:00:11]} 42. Rd3 {[%clk 0:00:10]}  Rb2 {[%clk 0:00:11]} 43. g4 {[%clk 0:00:08]}  Rxh2 {[%clk 0:00:10]} 44. Rxd4 {[%clk 0:00:09]}  Rf2 {[%clk 0:00:11]} 45. Ra4 {[%clk 0:00:08]}  Rf6 {[%clk 0:00:10]} 46. Ra7+ {[%clk 0:00:08]}  Kf8 {[%clk 0:00:10]} 47. Ra8+ {[%clk 0:00:08]}  Kf7 {[%clk 0:00:10]} 48. Ra7+ {[%clk 0:00:08]}  Kg6 {[%clk 0:00:10]} 49. Ra8 {[%clk 0:00:09]}  Kg5 {[%clk 0:00:10]} 50. Ra4 {[%clk 0:00:09]}  g6 {[%clk 0:00:09]} 51. Rb4 {[%clk 0:00:09]}  Rf8 {[%clk 0:00:09]} 52. Rd4 {[%clk 0:00:09]}  Re8+ {[%clk 0:00:09]} 53. Kd6 {[%clk 0:00:09]}  Rf8 {[%clk 0:00:09]} 54. Ke7 {[%clk 0:00:08]}  Rf1 {[%clk 0:00:09]} 55. Ke6 {[%clk 0:00:07]}  Rf4 {[%clk 0:00:08]} 56. Rd5+ {[%clk 0:00:07]}  Kxg4 {[%clk 0:00:09]} 57. Rd1 {[%clk 0:00:07]}  g5 {[%clk 0:00:09]} 58. Rh1 {[%clk 0:00:07]}  h5 {[%clk 0:00:07]} 59. Ke5 {[%clk 0:00:08]}  Rf3 {[%clk 0:00:07]} 60. Ke4 {[%clk 0:00:08]}  Rg3 {[%clk 0:00:07]} 61. Rb1 {[%clk 0:00:04]}  h4 {[%clk 0:00:07]} 62. Rh1 {[%clk 0:00:04]}  h3 {[%clk 0:00:07]} 63. Ke5 {[%clk 0:00:05]}  Rg2 {[%clk 0:00:08]} 64. Kf6 {[%clk 0:00:04]}  Kg3 {[%clk 0:00:07]} 65. Kxg5 {[%clk 0:00:04]}  h2 {[%clk 0:00:08]} 66. Kh5 {[%clk 0:00:04]}  Rg1 {[%clk 0:00:07]} 67. Rxh2 {[%clk 0:00:04]}  Kxh2 {[%clk 0:00:08]} 68. Kh6 {[%clk 0:00:04]}  Kh3 {[%clk 0:00:08]} 69. Kh5 {[%clk 0:00:05]}  Ra1 {[%clk 0:00:07]} 70. Kh6 {[%clk 0:00:06]}  Ra5 {[%clk 0:00:07]} 71. Kg6 {[%clk 0:00:06]}  Kg4 {[%clk 0:00:07]} 72. Kf6 {[%clk 0:00:07]}  Kf4 {[%clk 0:00:07]} 73. Ke6 {[%clk 0:00:08]}  Ke4 {[%clk 0:00:07]} 74. Kd6 {[%clk 0:00:09]}  Kd4 {[%clk 0:00:07]} 75. Ke6 {[%clk 0:00:10]}  Rd5 {[%clk 0:00:07]} 76. Kf6 {[%clk 0:00:10]}  Re5 {[%clk 0:00:08]} 77. Kg6 {[%clk 0:00:10]}  Ke4 {[%clk 0:00:08]} 78. Kf6 {[%clk 0:00:10]}  Kf4 {[%clk 0:00:08]} 79. Kf7 {[%clk 0:00:10]}  Kf5 {[%clk 0:00:08]} 80. Kg7 {[%clk 0:00:11]}  Re6 {[%clk 0:00:07]} 81. Kf8 {[%clk 0:00:11]}  Kf6 {[%clk 0:00:07]} 82. Kg8 {[%clk 0:00:12]}  Re7 {[%clk 0:00:07]} 83. Kf8 {[%clk 0:00:12]}  Re6 {[%clk 0:00:07]} 84. Kg8 {[%clk 0:00:12]}  Re7 {[%clk 0:00:07]} 85. Kf8 {[%clk 0:00:13]}  Ra7 {[%clk 0:00:07]} 86. Ke8 {[%clk 0:00:13]}  Re7+ {[%clk 0:00:06]} 87. Kd8 {[%clk 0:00:13]}  Ke6 {[%clk 0:00:06]} 88. Kc8 {[%clk 0:00:13]}  Kd6 {[%clk 0:00:06]} 89. Kd8 {[%clk 0:00:13]}  Ke6 {[%clk 0:00:06]} 90. Kc8 {[%clk 0:00:13]}  Rd7 {[%clk 0:00:06]} 91. Kb8 {[%clk 0:00:13]}  Kd6 {[%clk 0:00:07]} 92. Ka8 {[%clk 0:00:13]}  Kc6 {[%clk 0:00:07]} 93. Kb8 {[%clk 0:00:14]}  Rc7 {[%clk 0:00:07]} 94. Ka8 {[%clk 0:00:13]}  Kb6 {[%clk 0:00:07]} 95. Kb8 {[%clk 0:00:14]}  Rc6 {[%clk 0:00:07]} 96. Ka8 {[%clk 0:00:14]}  Rc8# {[%clk 0:00:08]} 0-1


[Site "https://www.chess.com"]

[Event "Titled Tuesday Blitz May 03 Early 2022"]
[White "Zemlyanskii, Ivan"]
[Black "Odegov, Artem"]
[WhiteFideId "24249971"]
[BlackFideId "34183644"]
[WhiteElo "1759"]
[BlackElo "2286"]
[Result "1-0"]
[Round "04"]
[TimeControl "180+1"]
[Date "2022.05.03"]
[WhiteClock "0:00:09"]
[BlackClock "0:00:06"]

1. d4 {[%clk 0:03:00]}  Nf6 {[%clk 0:02:37]} 2. c4 {[%clk 0:03:00]}  e6 {[%clk 0:02:37]} 3. Nf3 {[%clk 0:02:57]}  d5 {[%clk 0:02:38]} 4. e3 {[%clk 0:02:58]}  Be7 {[%clk 0:02:37]} 5. b3 {[%clk 0:02:57]}  O-O {[%clk 0:02:37]} 6. Bd3 {[%clk 0:02:57]}  b6 {[%clk 0:02:37]} 7. O-O {[%clk 0:02:57]}  Bb7 {[%clk 0:02:37]} 8. Bb2 {[%clk 0:02:57]}  Nbd7 {[%clk 0:02:36]} 9. Nc3 {[%clk 0:02:58]}  c5 {[%clk 0:02:36]} 10. cxd5 {[%clk 0:02:52]}  Nxd5 {[%clk 0:02:35]} 11. Nxd5 {[%clk 0:02:48]}  Bxd5 {[%clk 0:02:36]} 12. Qe2 {[%clk 0:02:40]}  cxd4 {[%clk 0:02:34]} 13. Nxd4 {[%clk 0:02:41]}  Nc5 {[%clk 0:02:32]} 14. Bc2 {[%clk 0:02:29]}  f5 {[%clk 0:01:49]} 15. Rfd1 {[%clk 0:02:21]}  Qe8 {[%clk 0:01:34]} 16. Nxf5 {[%clk 0:02:17]}  Bf6 {[%clk 0:01:13]} 17. Bxf6 {[%clk 0:02:02]}  Rxf6 {[%clk 0:01:14]} 18. Ng3 {[%clk 0:02:02]}  Qf7 {[%clk 0:00:59]} 19. b4 {[%clk 0:01:49]}  Nd7 {[%clk 0:00:53]} 20. f4 {[%clk 0:01:34]}  Rf8 {[%clk 0:00:49]} 21. e4 {[%clk 0:01:11]}  Bb7 {[%clk 0:00:32]} 22. f5 {[%clk 0:01:11]}  Qe7 {[%clk 0:00:04]} 23. Bb3 {[%clk 0:01:02]}  Kh8 {[%clk 0:00:04]} 24. fxe6 {[%clk 0:00:46]}  Ne5 {[%clk 0:00:05]} 25. Nf5 {[%clk 0:00:44]}  Qxb4 {[%clk 0:00:05]} 26. e7 {[%clk 0:00:42]}  Re8 {[%clk 0:00:06]} 27. Rd8 {[%clk 0:00:40]}  Bc6 {[%clk 0:00:04]} 28. Rad1 {[%clk 0:00:32]}  h6 {[%clk 0:00:02]} 29. Rxe8+ {[%clk 0:00:29]}  Bxe8 {[%clk 0:00:03]} 30. Rd8 {[%clk 0:00:28]}  Qc5+ {[%clk 0:00:03]} 31. Kh1 {[%clk 0:00:27]}  Qc1+ {[%clk 0:00:03]} 32. Bd1 {[%clk 0:00:15]}  Qc6 {[%clk 0:00:03]} 33. h3 {[%clk 0:00:14]}  Kh7 {[%clk 0:00:03]} 34. Bb3 {[%clk 0:00:11]}  Bf7 {[%clk 0:00:02]} 35. Bxf7 {[%clk 0:00:11]}  Nxf7 {[%clk 0:00:03]} 36. e8=Q {[%clk 0:00:12]}  Nxd8 {[%clk 0:00:03]} 37. Qxc6 {[%clk 0:00:11]}  Nxc6 {[%clk 0:00:04]} 38. Ne3 {[%clk 0:00:11]}  Nd4 {[%clk 0:00:04]} 39. Qd3 {[%clk 0:00:11]}  Ne6 {[%clk 0:00:04]} 40. e5+ {[%clk 0:00:12]}  Rg6 {[%clk 0:00:05]} 41. Nd5 {[%clk 0:00:12]}  h5 {[%clk 0:00:04]} 42. Ne7 {[%clk 0:00:12]}  Nf4 {[%clk 0:00:05]} 43. Qf5 {[%clk 0:00:11]}  Kh6 {[%clk 0:00:05]} 44. Qxf4+ {[%clk 0:00:09]}  Rg5 {[%clk 0:00:06]} 45. h4 {[%clk 0:00:08]}  Kh7 {[%clk 0:00:06]} 46. Qxg5 {[%clk 0:00:09]} 1-0


[Site "https://www.chess.com"]

[Event "Titled Tuesday Blitz May 03 Early 2022"]
[White "Zhao, Jun"]
[Black "Zhu, Jiner"]
[WhiteFideId "8602522"]
[BlackFideId "8608059"]
[WhiteElo "2547"]
[BlackElo "2281"]
[Result "1/2-1/2"]
[Round "04"]
[TimeControl "180+1"]
[Date "2022.05.03"]
[WhiteClock "0:00:37"]
[BlackClock "0:00:22"]

1. d4 {[%clk 0:02:59]}  Nf6 {[%clk 0:02:59]} 2. Bf4 {[%clk 0:02:58]}  d5 {[%clk 0:02:59]} 3. e3 {[%clk 0:02:58]}  e6 {[%clk 0:02:59]} 4. Nf3 {[%clk 0:02:58]}  Bd6 {[%clk 0:02:59]} 5. Nbd2 {[%clk 0:02:58]}  O-O {[%clk 0:02:58]} 6. Bd3 {[%clk 0:02:57]}  c5 {[%clk 0:02:58]} 7. c3 {[%clk 0:02:50]}  Bxf4 {[%clk 0:02:49]} 8. exf4 {[%clk 0:02:50]}  Qc7 {[%clk 0:02:48]} 9. g3 {[%clk 0:02:47]}  b6 {[%clk 0:02:48]} 10. Qe2 {[%clk 0:02:45]}  a5 {[%clk 0:02:47]} 11. O-O {[%clk 0:02:39]}  Ba6 {[%clk 0:02:46]} 12. Rfe1 {[%clk 0:02:39]}  Bxd3 {[%clk 0:02:44]} 13. Qxd3 {[%clk 0:02:40]}  Nc6 {[%clk 0:02:34]} 14. a4 {[%clk 0:02:40]}  Rac8 {[%clk 0:02:26]} 15. Kg2 {[%clk 0:02:39]}  cxd4 {[%clk 0:02:22]} 16. Nxd4 {[%clk 0:02:37]}  Nxd4 {[%clk 0:02:22]} 17. Qxd4 {[%clk 0:02:37]}  Qc5 {[%clk 0:02:15]} 18. Qd3 {[%clk 0:02:27]}  g6 {[%clk 0:02:12]} 19. Re2 {[%clk 0:02:28]}  Kg7 {[%clk 0:02:10]} 20. h3 {[%clk 0:02:26]}  h5 {[%clk 0:02:09]} 21. h4 {[%clk 0:02:17]}  Rfd8 {[%clk 0:02:09]} 22. Nf3 {[%clk 0:02:15]}  Ne4 {[%clk 0:01:21]} 23. Nd4 {[%clk 0:02:15]}  Qc4 {[%clk 0:01:17]} 24. Qe3 {[%clk 0:02:14]}  Kh7 {[%clk 0:01:05]} 25. Ree1 {[%clk 0:02:00]}  Re8 {[%clk 0:01:02]} 26. Nf3 {[%clk 0:01:58]}  Qc5 {[%clk 0:01:01]} 27. Nd4 {[%clk 0:01:54]}  Nd6 {[%clk 0:01:00]} 28. Qd3 {[%clk 0:01:44]}  Qc4 {[%clk 0:00:56]} 29. Qe3 {[%clk 0:01:41]}  Nf5 {[%clk 0:00:55]} 30. Nxf5 {[%clk 0:01:40]}  exf5 {[%clk 0:00:55]} 31. Qxe8 {[%clk 0:01:37]}  Rxe8 {[%clk 0:00:56]} 32. Rxe8 {[%clk 0:01:38]}  d4 {[%clk 0:00:56]} 33. cxd4 {[%clk 0:01:25]}  Qxd4 {[%clk 0:00:57]} 34. Re7 {[%clk 0:01:26]}  Qxb2 {[%clk 0:00:46]} 35. Rd1 {[%clk 0:01:23]}  Qb3 {[%clk 0:00:46]} 36. Rdd7 {[%clk 0:01:22]}  Kg7 {[%clk 0:00:46]} 37. Rb7 {[%clk 0:01:19]}  Kf6 {[%clk 0:00:42]} 38. Rec7 {[%clk 0:01:17]}  Kg7 {[%clk 0:00:40]} 39. Kh2 {[%clk 0:01:11]}  Qa2 {[%clk 0:00:39]} 40. Kg1 {[%clk 0:01:10]}  Qb1+ {[%clk 0:00:37]} 41. Kg2 {[%clk 0:01:10]}  Qb3 {[%clk 0:00:37]} 42. Rd7 {[%clk 0:01:05]}  Qe6 {[%clk 0:00:30]} 43. Kh2 {[%clk 0:00:56]}  Qa2 {[%clk 0:00:28]} 44. Kg1 {[%clk 0:00:55]}  Qb1+ {[%clk 0:00:28]} 45. Kg2 {[%clk 0:00:55]}  Qb3 {[%clk 0:00:29]} 46. Rd6 {[%clk 0:00:53]}  Qxa4 {[%clk 0:00:26]} 47. Rdxb6 {[%clk 0:00:52]}  Qc4 {[%clk 0:00:25]} 48. Ra7 {[%clk 0:00:48]}  Qd5+ {[%clk 0:00:23]} 49. Kg1 {[%clk 0:00:43]}  Qd1+ {[%clk 0:00:23]} 50. Kg2 {[%clk 0:00:44]}  Qd5+ {[%clk 0:00:23]} 51. Kg1 {[%clk 0:00:36]}  Qd1+ {[%clk 0:00:23]} 52. Kg2 {[%clk 0:00:37]}  Qd5+ {[%clk 0:00:22]} 1/2-1/2


[Site "https://www.chess.com"]

[Event "Titled Tuesday Blitz May 03 Early 2022"]
[White "Bach, Ngoc Thuy Duong"]
[Black "Nayak, Rajesh"]
[WhiteFideId "12408956"]
[BlackFideId "35017152"]
[WhiteElo "1862"]
[BlackElo "1998"]
[Result "1-0"]
[Round "05"]
[TimeControl "180+1"]
[Date "2022.05.03"]
[WhiteClock "0:00:49"]
[BlackClock "0:00:07"]

1. d4 {[%clk 0:03:00]}  Nf6 {[%clk 0:02:57]} 2. c4 {[%clk 0:03:01]}  g6 {[%clk 0:02:50]} 3. Nc3 {[%clk 0:03:01]}  Bg7 {[%clk 0:02:46]} 4. e4 {[%clk 0:02:42]}  d6 {[%clk 0:02:47]} 5. Nf3 {[%clk 0:02:42]}  O-O {[%clk 0:02:46]} 6. Be2 {[%clk 0:02:43]}  e5 {[%clk 0:02:44]} 7. O-O {[%clk 0:02:43]}  Nc6 {[%clk 0:02:44]} 8. d5 {[%clk 0:02:43]}  Ne7 {[%clk 0:02:44]} 9. b4 {[%clk 0:02:43]}  Ne8 {[%clk 0:02:44]} 10. c5 {[%clk 0:02:41]}  f5 {[%clk 0:02:44]} 11. Nd2 {[%clk 0:02:41]}  Nf6 {[%clk 0:02:41]} 12. a4 {[%clk 0:02:41]}  f4 {[%clk 0:01:59]} 13. Ba3 {[%clk 0:02:39]}  g5 {[%clk 0:01:57]} 14. b5 {[%clk 0:02:32]}  g4 {[%clk 0:01:38]} 15. Nc4 {[%clk 0:02:10]}  f3 {[%clk 0:01:23]} 16. gxf3 {[%clk 0:02:11]}  gxf3 {[%clk 0:01:22]} 17. Bxf3 {[%clk 0:02:11]}  Bh3 {[%clk 0:01:17]} 18. cxd6 {[%clk 0:02:03]}  cxd6 {[%clk 0:01:10]} 19. Nxd6 {[%clk 0:02:01]}  Ng6 {[%clk 0:01:06]} 20. Nf5 {[%clk 0:01:55]}  Rf7 {[%clk 0:00:54]} 21. Re1 {[%clk 0:01:45]}  Bf8 {[%clk 0:00:28]} 22. Bxf8 {[%clk 0:01:43]}  Qxf8 {[%clk 0:00:29]} 23. Kh1 {[%clk 0:01:28]}  Nxe4 {[%clk 0:00:25]} 24. Bxe4 {[%clk 0:01:26]}  Rxf5 {[%clk 0:00:21]} 25. Bxf5 {[%clk 0:01:09]}  Qxf5 {[%clk 0:00:22]} 26. Rg1 {[%clk 0:01:06]}  Rc8 {[%clk 0:00:18]} 27. Rg3 {[%clk 0:01:04]}  Kh8 {[%clk 0:00:16]} 28. Qd3 {[%clk 0:00:58]}  Bg2+ {[%clk 0:00:13]} 29. Kg1 {[%clk 0:00:55]}  Qxd3 {[%clk 0:00:08]} 30. Rxd3 {[%clk 0:00:54]}  Nf4 {[%clk 0:00:09]} 31. Rg3 {[%clk 0:00:51]}  Bh3 {[%clk 0:00:08]} 32. Re1 {[%clk 0:00:50]}  Rxc3 {[%clk 0:00:08]} 33. Rxc3 {[%clk 0:00:49]}  Bd7 {[%clk 0:00:07]} 34. Rxe5 {[%clk 0:00:49]} 1-0


[Site "https://www.chess.com"]